Cogmind - Beta 15 *** ADVENTURER MODE // 2025.06.10 @ 01:31:45 Player: User15V Result: Destroyed by P-80 Master with Gamma Rifle Performance ------------- Evolutions (6) 3000 Regions Visited (17) 3400 Robots Destroyed (38) 190 Value Destroyed (1244) 1244 Prototype IDs (14) 280 Alien Tech Used (2) 400 Bonus (17456) 17456 TOTAL SCORE: 25970 Bonus ------- Pure Core 3345 Scavenger 6000 Simple Hacker 3682 Sticky Parts 3000 Follower Combat Kills 329 Entered DSFs 500 Acquired ECA 300 Met Zhirov 300 Cogmind --------- Core Integrity 0/1150 Matter 261/300 Energy 97/100 System Corruption 1% Temperature Cool (6) Movement Flying (32) Location -3/Proximity Caves Parts ------- > --- POWER (2) -------- (None) > --- PROPULSION (6) --- Cooled Nuclear Pulse Thruster Cooled Nuclear Pulse Thruster Cooled Nuclear Pulse Thruster > --- UTILITY (8) ------ Advanced Power Amplifier Advanced Visual Processing Unit Transport Network Coupler Advanced System Shield > --- WEAPON (3) ------- (None) > --- INVENTORY (0) ---- (None) Peak State ------------ > --- POWER ------------ Micro Fission Core Antimatter Reactor > --- PROPULSION ------- Nuclear Pulse Thruster Nuclear Pulse Thruster Nuclear Pulse Thruster Impulse Thruster Impulse Thruster > --- UTILITY ---------- Improved Heat Sink Improved Matter Compressor Weight Redist. System Machine Analyzer Advanced Visual Processing Unit Transport Network Coupler Encrypted Comm Array System Shield > --- WEAPON ----------- Dispersion Rifle Enhanced Nova Cannon > --- INVENTORY -------- (None) [Rating: 85] Favorites ----------- Power Backup Power III Engine Backup Power III Power Core Micro Fission Core Reactor Antimatter Reactor Propulsion Nuclear Pulse Thruster Leg Improved Titanium Leg Hover Unit Antigrav System Flight Unit Nuclear Pulse Thruster Utility Transport Network Coupler Device Weight Redist. System Storage Improved Matter Compressor Processor Transport Network Coupler Hackware System Shield Weapon Gatling Laser Energy Gun Gatling Laser Energy Cannon Enhanced Nova Cannon Ballistic Gun Battle Rifle Ballistic Cannon Advanced Assault Cannon Build | -11 -10 -10 -9 -8 -7 -7 -7 -6 -5 -5 -4 -4 -4 -4 -4 -4 -3 ------- Run | Yrd Mat Min Mat Mat Fac Was Fac Fac Fac DSF Fac Was Fac Upp Upp Zhi Pro Slots Evolved 12 | . . . 2 2 2 . . 2 2 . 2 . . . . . . Power 1 | . . . . . 1 . . . . . . . . . . . . Propulsion 4 | . . . 1 1 . . . . 1 . 1 . . . . . . Utility 6 | . . . 1 1 1 . . 1 1 . 1 . . . . . . Weapon 1 | . . . . . . . . 1 . . . . . . . . . Parts Attached 52 | . 1 7 7 2 4 4 3 2 . 7 . 3 2 3 2 5 . Power 6 | . . 1 1 . 1 . . . . 1 . 1 . 1 . . . Engine 3 | . . 1 1 . 1 . . . . . . . . . . . . Core 2 | . . . . . . . . . . 1 . . . 1 . . . Reactor 1 | . . . . . . . . . . . . 1 . . . . . Propulsion 17 | . . 2 2 1 1 2 1 . . 3 . . 2 . . 3 . Treads . | . . . . . . . . . . . . . . . . . . Leg 1 | . . . . . 1 . . . . . . . . . . . . Wheel . | . . . . . . . . . . . . . . . . . . Hover 3 | . . . . . . 2 1 . . . . . . . . . . Flight 13 | . . 2 2 1 . . . . . 3 . . 2 . . 3 . Utility 15 | . . 2 2 1 . 1 2 1 . 1 . 1 . 1 1 2 . Device 9 | . . 2 1 1 . . . . . 1 . 1 . 1 1 1 . Storage 1 | . . . . . . 1 . . . . . . . . . . . Processor 3 | . . . 1 . . . 1 1 . . . . . . . . . Hackware 2 | . . . . . . . 1 . . . . . . . . 1 . Protection . | . . . . . . . . . . . . . . . . . . Artifact . | . . . . . . . . . . . . . . . . . . Weapon 14 | . 1 2 2 . 2 1 . 1 . 2 . 1 . 1 1 . . Energy Gun 6 | . . 1 1 . 1 . . . . 1 . . . 1 1 . . Energy Cannon 3 | . 1 . . . 1 . . . . . . 1 . . . . . Ballistic Gun 2 | . . 1 . . . 1 . . . . . . . . . . . Ballistic Cannon 3 | . . . 1 . . . . 1 . 1 . . . . . . . Launcher . | . . . . . . . . . . . . . . . . . . Special Weapon . | . . . . . . . . . . . . . . . . . . Impact Weapon . | . . . . . . . . . . . . . . . . . . Slashing Weapon . | . . . . . . . . . . . . . . . . . . Piercing Weapon . | . . . . . . . . . . . . . . . . . . Special Melee Weapon . | . . . . . . . . . . . . . . . . . . Unidentified Prototypes 5 | . . . 1 . . 1 . . . . . . . . . 3 . Parts Lost 46 | . . 7 . 1 10 . . . . 5 . 4 . 14 5 . . Power 8 | . . 1 . . 2 . . . . 1 . 1 . 3 . . . Propulsion 13 | . . 2 . . 4 . . . . 2 . . . 5 . . . Utility 11 | . . 1 . . 2 . . . . . . 1 . 3 4 . . Weapon 14 | . . 3 . 1 2 . . . . 2 . 2 . 3 1 . . Highest Loss Streak 10 | . . 6 . 1 4 . . . . 3 . 2 . 8 10 . . To Critical Strikes 2 | . . . . . . . . . . . . . . . 2 . . Average Backups . | . . . . . . . . . . . . . . . . . . Power . | . . . . . . . . . . . . . . . . . . Propulsion . | . . . . . . . . . . . . . . . . . . Utility . | . . . . . . . . . . . . . . . . . . Weapon . | . . . . . . . . . . . . . . . . . . Tool/Special . | . . . . . . . . . . . . . . . . . . Unused Backups . | . . . . . . . . . . . . . . . . . . Power . | . . . . . . . . . . . . . . . . . . Propulsion . | . . . . . . . . . . . . . . . . . . Utility . | . . . . . . . . . . . . . . . . . . Weapon . | . . . . . . . . . . . . . . . . . . Tool/Special . | . . . . . . . . . . . . . . . . . . Average Slot Usage (%) 65 | . 4 54 44 84 47 59 95 93 88 86 89 81 75 64 18 23 36 Engine 5 | . . 6 5 9 4 11 15 13 11 7 5 2 . . . . . Core 1 | . . . . . . . . . . 1 5 5 5 3 . . . Hover 7 | . . . . . . 14 28 26 23 15 10 4 . . . . . Flight 9 | . . 14 9 22 9 . . . . 6 15 15 17 15 . 8 15 Device 10 | . . 14 16 25 14 7 7 6 5 9 10 13 10 11 2 2 5 Storage 3 | . . . . . . 5 7 6 5 5 5 5 5 4 . . . Processor 11 | . . . 5 9 7 7 13 15 17 17 15 15 15 15 10 10 10 Hackware 3 | . . . . . . . 6 6 5 5 5 5 5 5 3 2 5 Energy Gun 4 | . . 7 . 9 5 7 7 6 5 1 5 5 5 2 . . . Energy Cannon 1 | . 4 3 . . 1 . . . . . . . 5 2 . . . Ballistic Gun 1 | . . 7 . . . 3 7 6 5 . . . . . . . . Ballistic Cannon 2 | . . . 7 9 . . . 4 5 9 10 6 . . . . . Peak Build Rating 85 | . 1 9 13 17 22 34 44 51 51 72 72 81 80 85 18 38 38 Average Rating 40 | . . 4 5 16 14 27 42 48 51 56 72 69 68 57 9 22 38 On Entrance 31 | . . 1 1 13 15 7 34 44 51 51 72 72 66 80 15 4 38 Naked Turns 38 | . 26 12 . . . . . . . . . . . . . . . Heaviest Build 45 | . 3 7 13 14 20 14 14 20 20 34 34 45 45 45 5 3 3 Greatest Support 38 | 3 3 8 15 19 26 27 36 36 36 36 24 24 38 38 3 12 12 Greatest Overweight (x) 3 | . . . 1 . 3 1 . . . 3 1 1 1 3 1 . . Average Overweight (x) . | . . . . . . . . . . . 1 1 1 . . . . Largest Inventory Capacity . | . . . . . . . . . . . . . . . . . . Average Capacity . | . . . . . . . . . . . . . . . . . . Most Carried . | . . . . . . . . . . . . . . . . . . Average Carried . | . . . . . . . . . . . . . . . . . . Final Capacity . | . . . . . . . . . . . . . . . . . . Final Carried . | . . . . . . . . . . . . . . . . . . Class Distribution -------------------- 37% | Scavenger-Mutant 21% | Hacker-Mutant 18% | Mutant 14% | Scavenger-Skirmisher 4% | Hacker-Sprinter 3% | Hacker-Skirmisher Dominant Class ---------------- Mutant | -10/Materials Scavenger-Mutant | -10/Mines Mutant | -9/Materials Scavenger-Mutant | -8/Materials Mutant | -7/Factory Scavenger-Mutant | -7/Waste Hacker-Mutant | -7/Factory Hacker-Skirmisher | -6/Factory Scavenger-Skirmisher | -5/Factory Scavenger-Mutant | -5/DSF Scavenger-Skirmisher | -4/Factory Scavenger-Mutant | -4/Waste Scavenger-Mutant | -4/Factory Hacker-Mutant | -4/Upper Caves Hacker-Mutant | -4/Upper Caves Hacker-Mutant | -4/Zhirov Hacker-Sprinter | -3/Proximity Caves Resources | -11 -10 -10 -9 -8 -7 -7 -7 -6 -5 -5 -4 -4 -4 -4 -4 -4 -3 ----------- Run | Yrd Mat Min Mat Mat Fac Was Fac Fac Fac DSF Fac Was Fac Upp Upp Zhi Pro Matter Collected 1819 | 200 . 75 82 51 59 370 . 145 . 481 18 . . 289 15 . 34 Remotely . | . . . . . . . . . . . . . . . . . . Salvage Created 1583 | . . 135 108 97 280 . . 247 . 438 13 . . 205 60 . . Parts 64 | . . 13 8 7 6 . . 5 . 8 2 . . 11 4 . . Haulers Intercepted 4 | . . . 1 . . . . 1 . 2 . . . . . . . Recyclers Shooed 4 | . . . 2 . 1 . . 1 . . . . . . . . . Parts Field Recycled . | . . . . . . . . . . . . . . . . . . Retrieved Matter . | . . . . . . . . . . . . . . . . . . Parts Self-Destructed 16 | . . . . . . . . . . . . . . 11 5 . . Prevented 1 | . . . . . . . . . . . . . . . 1 . . Kills | -11 -10 -10 -9 -8 -7 -7 -7 -6 -5 -5 -4 -4 -4 -4 -4 -4 -3 ------- Run | Yrd Mat Min Mat Mat Fac Was Fac Fac Fac DSF Fac Was Fac Upp Upp Zhi Pro Combat Hostiles Destroyed 24 | . . 5 2 3 2 . . 1 . 6 . . . 3 2 . . Guns 13 | . . 2 . 3 . . . 1 . 3 . . . 2 2 . . Cannons 10 | . . 3 2 . 1 . . . . 3 . . . 1 . . . Classes Destroyed 14 | . . 2 2 2 2 . . 3 . 3 . . . . . . . Worker 3 | . . . . 2 . . . . . . 1 . . . . . . Builder 1 | . . . . . . . . 1 . . . . . . . . . Hauler 4 | . . . 1 . . . . 1 . 2 . . . . . . . Recycler 3 | . . . . . 2 . . 1 . . . . . . . . . Mechanic 1 | . . . . . . . . 1 . . . . . . . . . Operator 1 | . . . . . . . . 1 . . . . . . . . . Watcher 1 | . . . 1 . . . . . . . . . . . . . . Swarmer 7 | . . 3 . 2 . . . . . . . . . . 2 . . Grunt 8 | . . 2 2 . . . . 1 . . . . . 3 . . . Sentry 2 | . . . . 1 1 . . . . . . . . . . . . Specialist 2 | . . . . . . . . . . 2 . . . . . . . Hunter 3 | . . . . . . . . . . 3 . . . . . . . Programmer 1 | . . . . . 1 . . . . . . . . . . . . Heavy 1 | . . . . . . . . . . 1 . . . . . . . Best Kill Streak 5 | . . 3 3 5 3 . . 2 . 2 1 . . 3 2 . . Combat Bots Only 3 | . . 3 2 3 1 . . 1 . 2 . . . 3 2 . . Max Kills in Single Turn 2 | . . 1 1 2 1 . . 1 . 1 1 . . 1 1 . . Gunslinging . | . . . . . . . . . . . . . . . . . . Exploded . | . . . . . . . . . . . . . . . . . . Melee . | . . . . . . . . . . . . . . . . . . Uniques/NPCs Destroyed . | . . . . . . . . . . . . . . . . . . Combat | -11 -10 -10 -9 -8 -7 -7 -7 -6 -5 -5 -4 -4 -4 -4 -4 -4 -3 -------- Run | Yrd Mat Min Mat Mat Fac Was Fac Fac Fac DSF Fac Was Fac Upp Upp Zhi Pro Hostile Shots Fired 600 | . . 57 20 20 146 . . 14 . 57 . 3 . 147 128 . 8 Missed 240 | . . 20 10 13 48 . . 4 . 10 . . . 64 67 . 4 Hits 360 | . . 37 10 7 98 . . 10 . 47 . 3 . 83 61 . 4 Melee 5 | . . . . . 2 . . . . . . 3 . . . . . Projectile 355 | . . 37 10 7 96 . . 10 . 47 . . . 83 61 . 4 AOE 9 | . . 9 . . . . . . . . . . . . . . . Critical Strikes 16 | . . 2 . 1 1 . . . . 1 . 1 . 8 2 . . Damage Taken 4200 | . . 512 74 83 783 11 . 116 . 640 . 125 . 1057 704 . 95 Core 1812 | . . 220 15 11 333 . . 13 . 77 . . . 506 563 . 74 Absorbed by Shields 29 | . . . . . 29 . . . . . . . . . . . . Ignored by Resistances 1260 | . . 150 26 23 256 5 . 33 . 188 . 32 . 306 215 . 26 Regen/Repaired (Parts) 370 | . . . . . . 104 . 48 . 218 . . . . . . . Core Remaining (%) 78 | 100 . 12 96 98 . . 52 98 . 92 . . . . . . . Volleys Fired 146 | . 1 16 15 8 25 6 . 14 . 32 9 . 2 15 3 . . Largest 3 | . 1 2 1 2 1 2 . 3 . 3 3 . 2 2 1 . . Hottest 208 | . 60 60 33 89 80 105 . 145 . 171 179 . 208 208 65 . . Shots Fired 254 | . 1 18 15 16 25 12 . 38 . 75 23 . 4 24 3 . . Gun 112 | . . 7 . 8 16 12 . 28 . 17 7 . 2 12 3 . . Cannon 142 | . 1 11 15 8 9 . . 10 . 58 16 . 2 12 . . . Launcher . | . . . . . . . . . . . . . . . . . . Special . | . . . . . . . . . . . . . . . . . . Kinetic 138 | . . 5 15 8 . 6 . 24 . 64 16 . . . . . . Thermal 111 | . 1 13 . 8 25 6 . 14 . 11 7 . 4 22 . . . Explosive . | . . . . . . . . . . . . . . . . . . Electromagnetic 5 | . . . . . . . . . . . . . . 2 3 . . Robot Hit Streak 24 | . 1 9 6 12 11 14 . 20 . 19 24 . 1 17 20 . . Robot Miss Streak 3 | . . 1 1 . 1 3 . 1 . 2 1 . 3 1 . . . Penetration Max . | . . . . . . . . . . . . . . . . . . Secondary Targets . | . . . . . . . . . . . . . . . . . . Shots Hit Robots 188 | . 1 15 12 12 21 11 . 26 . 59 7 . 1 20 3 . . Core Hits 83 | . . 8 4 6 7 5 . 18 . 24 2 . . 7 2 . . Critical Kills 4 | . . . . . . . . . . 2 . . . 2 . . . Critical Parts Destroyed 11 | . . . . . . . . . . 10 1 . . . . . . Critical Strikes 19 | . . . . . 2 . . . . 14 1 . . 2 . . . Burn 2 | . . . . . 2 . . . . . . . . . . . . Destroy 15 | . . . . . . . . . . 12 1 . . 2 . . . Blast 2 | . . . . . . . . . . 2 . . . . . . . Melee Attacks . | . . . . . . . . . . . . . . . . . . Impact . | . . . . . . . . . . . . . . . . . . Slashing . | . . . . . . . . . . . . . . . . . . Piercing . | . . . . . . . . . . . . . . . . . . Sneak Attacks . | . . . . . . . . . . . . . . . . . . Combat Hostiles . | . . . . . . . . . . . . . . . . . . Follow-up Attacks . | . . . . . . . . . . . . . . . . . . Damage Inflicted 3996 | . 18 216 251 215 435 214 . 642 . 1102 126 . 42 670 65 . . Guns 1820 | . . 53 . 115 200 214 . 515 . 317 54 . . 287 65 . . Cannons 2160 | . 18 156 251 100 226 . . 127 . 785 72 . 42 383 . . . Explosions . | . . . . . . . . . . . . . . . . . . Melee . | . . . . . . . . . . . . . . . . . . Ramming 16 | . . 7 . . 9 . . . . . . . . . . . . Kinetic 1670 | . . 30 251 100 . 82 . 274 . 861 72 . . . . . . Thermal 2201 | . 18 179 . 115 426 132 . 368 . 241 54 . 42 626 . . . Explosive . | . . . . . . . . . . . . . . . . . . Electromagnetic 109 | . . . . . . . . . . . . . . 44 65 . . Impact . | . . . . . . . . . . . . . . . . . . Slashing . | . . . . . . . . . . . . . . . . . . Piercing . | . . . . . . . . . . . . . . . . . . Highest Corruption 2 | . . . . . 1 1 1 . . 2 . . 1 1 1 1 1 Average Corruption 1 | . . . . . 1 1 1 . . 1 . . 1 1 1 1 1 Corruption Purged . | . . . . . . . . . . . . . . . . . . Corruption Blocked . | . . . . . . . . . . . . . . . . . . Effects 21 | . . . . . 4 3 . . . 3 . . . 8 2 . 1 Message Errors 4 | . . . . . 2 . . . . . . . . 1 1 . . Matter Fused 5 | . . . . . . 3 . . . 1 . . . . 1 . . Heat Flow Errors 4 | . . . . . . . . . . 1 . . . 2 . . 1 Energy Discharges 2 | . . . . . 1 . . . . . . . . 1 . . . Data Loss (minor) 3 | . . . . . 1 . . . . 1 . . . 1 . . . Data Loss (major) 2 | . . . . . . . . . . . . . . 2 . . . Weapon Failures 1 | . . . . . . . . . . . . . . 1 . . . Overload Shots . | . . . . . . . . . . . . . . . . . . Overflow Damage 44 | . . . 14 . . . . . . 8 . . 22 . . . . Projectiles 44 | . . . 14 . . . . . . 8 . . 22 . . . . Explosions . | . . . . . . . . . . . . . . . . . . Melee . | . . . . . . . . . . . . . . . . . . Knockbacks 7 | . . . 3 . . . . 1 . 3 . . . . . . . Impact . | . . . . . . . . . . . . . . . . . . Kinetic 6 | . . . 2 . . . . 1 . 3 . . . . . . . Secondary 1 | . . . 1 . . . . . . . . . . . . . . Self-Inflicted Damage 7 | . . 3 . . 4 . . . . . . . . . . . . Shots . | . . . . . . . . . . . . . . . . . . Rammed 4 | . . 1 . . 2 . . 1 . . . . . . . . . Targets Rammed 4 | . . 1 . . 2 . . 1 . . . . . . . . . Kicked . | . . . . . . . . . . . . . . . . . . Crushed . | . . . . . . . . . . . . . . . . . . Highest Temperature 722 | . 10 115 . 56 175 135 . 168 . 133 240 . 210 722 . . 171 Average Temperature 104 | . 7 52 . 25 71 67 . 73 . 34 83 . 110 283 . . 86 Received Heat Transfer 902 | . . 113 36 63 324 . . 48 . 9 . . . 300 . . 9 Effects 20 | . . . . . . . . . . . . . . 20 . . . Shutdowns 2 | . . . . . . . . . . . . . . 2 . . . Energy Bleed 4 | . . . . . . . . . . . . . . 4 . . . Interference 2 | . . . . . . . . . . . . . . 2 . . . Matter Decay 1 | . . . . . . . . . . . . . . 1 . . . Short Circuit 2 | . . . . . . . . . . . . . . 2 . . . Damage (major) 9 | . . . . . . . . . . . . . . 9 . . . Siege Activations . | . . . . . . . . . . . . . . . . . . Martial Activations . | . . . . . . . . . . . . . . . . . . Shielding Activations . | . . . . . . . . . . . . . . . . . . Robots Disrupted . | . . . . . . . . . . . . . . . . . . Combat Hostiles . | . . . . . . . . . . . . . . . . . . Robots Corrupted . | . . . . . . . . . . . . . . . . . . Combat Hostiles . | . . . . . . . . . . . . . . . . . . Parts Fried . | . . . . . . . . . . . . . . . . . . Impact Corruptions . | . . . . . . . . . . . . . . . . . . Robots Melted 1 | . . . . . 1 . . . . . . . . . . . . Combat Hostiles 1 | . . . . . 1 . . . . . . . . . . . . Parts Melted 6 | . . . . . 6 . . . . . . . . . . . . Heat Transferred 4210 | . 37 383 . 296 1042 300 . 825 . 550 74 . 37 666 . . . Parts Sabotaged . | . . . . . . . . . . . . . . . . . . Parts Stolen . | . . . . . . . . . . . . . . . . . . Parts Stripped . | . . . . . . . . . . . . . . . . . . Power Chain Reactions . | . . . . . . . . . . . . . . . . . . Alert | -11 -10 -10 -9 -8 -7 -7 -7 -6 -5 -5 -4 -4 -4 -4 -4 -4 -3 ------- Run | Yrd Mat Min Mat Mat Fac Was Fac Fac Fac DSF Fac Was Fac Upp Upp Zhi Pro Maximum Alert Level . | . . . . . . . . . . . . . . . . . . Low Security (%) 100 | 100 100 100 100 100 100 100 100 100 100 100 100 100 100 . . . . Level 1 . | . . . . . . . . . . . . . . . . . . Level 2 . | . . . . . . . . . . . . . . . . . . Level 3 . | . . . . . . . . . . . . . . . . . . Level 4 . | . . . . . . . . . . . . . . . . . . Level 5 . | . . . . . . . . . . . . . . . . . . High Security . | . . . . . . . . . . . . . . . . . . Max Security . | . . . . . . . . . . . . . . . . . . Sterilizations 1 | . . . . . . . . . . 1 . . . . . . . Peak Influence 176 | . . 105 49 85 40 26 24 118 37 176 88 . 12 . . . . Initial 79 | . . . . 13 25 . . . 37 22 79 . . . . . . Average 36 | . . 59 14 44 14 2 4 55 37 139 38 . 1 . . . . Influence Increases 1498 | . . 135 76 92 145 67 46 252 . 314 22 . 14 115 145 . 75 Destroy 0b10 Robot/C 580 | . . 100 40 60 40 . . 80 . 160 . . . 60 40 . . Destroy 0b10 Robot/NC 70 | . . . 10 10 10 . . 25 . 10 5 . . . . . . Destroy Leader 146 | . . 20 14 20 20 . . 32 . 30 . . . 10 . . . Allied During Kill 33 | . . . . . . . . 18 . 15 . . . . . . . Successful Hack 126 | . . . 12 . . . 46 52 . . 4 . 12 . . . . Disable Machine 36 | . . . . . . . . 9 . 18 9 . . . . . . Destroy Structure 162 | . . . . 2 . 67 . 21 . 66 4 . 2 . . . . Partial Spotted 15 | . . . . . . . . 15 . . . . . . . . . Lose Combat Pursuer 330 | . . 15 . . 75 . . . . 15 . . . 45 105 . 75 Influence Decreases 1448 | . . 135 37 66 210 67 46 164 51 175 198 . 14 115 50 95 25 Entered New Map 324 | . . . . 26 40 . . . 51 15 97 . . . . 95 . Time Decay 678 | . . 65 37 30 135 50 46 120 . . 101 . 14 35 20 . 25 Lost Part 275 | . . 70 . 10 35 . . . . 50 . . . 80 30 . . Lost Ally 143 | . . . . . . 17 . 16 . 110 . . . . . . . Purge Threat 28 | . . . . . . . . 28 . . . . . . . . . Squads Dispatched 12 | . . . 2 2 2 . . 1 . 1 2 . 2 . . . . Investigation 3 | . . . 1 1 . . . . . . . . 1 . . . . Extermination 1 | . . . . . 1 . . . . . . . . . . . . Reinforcement 7 | . . . 1 . 1 . . 1 . 1 2 . 1 . . . . Assault . | . . . . . . . . . . . . . . . . . . Garrison 1 | . . . . 1 . . . . . . . . . . . . . Intercept . | . . . . . . . . . . . . . . . . . . Searches Triggered . | . . . . . . . . . . . . . . . . . . Construction Impeded . | . . . . . . . . . . . . . . . . . . Haulers Reinforced 1 | . . . . . . . . 1 . . . . . . . . . Active Scanning Responses . | . . . . . . . . . . . . . . . . . . Cargo Convoy Interrupts . | . . . . . . . . . . . . . . . . . . Stealth | -11 -10 -10 -9 -8 -7 -7 -7 -6 -5 -5 -4 -4 -4 -4 -4 -4 -3 --------- Run | Yrd Mat Min Mat Mat Fac Was Fac Fac Fac DSF Fac Was Fac Upp Upp Zhi Pro Distress Signals 2 | . . . 1 1 . . . . . . . . . . . . . Communications Jammed . | . . . . . . . . . . . . . . . . . . Distress Signals . | . . . . . . . . . . . . . . . . . . Times Spotted 118 | . 1 17 14 12 14 6 1 4 . 9 1 6 1 12 14 . 6 Peak Tracking Total 10 | . 1 7 8 10 5 2 2 2 . 3 1 6 1 5 8 . 4 Tactical Retreats 13 | . . 1 . . 2 1 . . . 1 . 2 . 2 2 . 2 Traps | -11 -10 -10 -9 -8 -7 -7 -7 -6 -5 -5 -4 -4 -4 -4 -4 -4 -3 ------- Run | Yrd Mat Min Mat Mat Fac Was Fac Fac Fac DSF Fac Was Fac Upp Upp Zhi Pro Traps Triggered 7 | . . . 1 . 4 . . . . 1 1 . . . . . . Indirectly . | . . . . . . . . . . . . . . . . . . Trap Hack Attempts . | . . . . . . . . . . . . . . . . . . Triggered . | . . . . . . . . . . . . . . . . . . Disarmed . | . . . . . . . . . . . . . . . . . . Reprogrammed 6 | . . . . . . . . 6 . . . . . . . . . Reused . | . . . . . . . . . . . . . . . . . . Traps Extracted . | . . . . . . . . . . . . . . . . . . Installed . | . . . . . . . . . . . . . . . . . . Triggered . | . . . . . . . . . . . . . . . . . . Machines | -11 -10 -10 -9 -8 -7 -7 -7 -6 -5 -5 -4 -4 -4 -4 -4 -4 -3 ---------- Run | Yrd Mat Min Mat Mat Fac Was Fac Fac Fac DSF Fac Was Fac Upp Upp Zhi Pro Machines Disabled 4 | . . . . . . . . 1 . 2 1 . . . . . . Max in Single Turn 1 | . . . . . . . . 1 . 1 1 . . . . . . Garrison Access 1 | . . . . . . . . . . . . . 1 . . . . Machines Repaired . | . . . . . . . . . . . . . . . . . . Machines Dismantled . | . . . . . . . . . . . . . . . . . . Machines Sabotaged . | . . . . . . . . . . . . . . . . . . Overloaded Fab Kills . | . . . . . . . . . . . . . . . . . . Hacking | -11 -10 -10 -9 -8 -7 -7 -7 -6 -5 -5 -4 -4 -4 -4 -4 -4 -3 --------- Run | Yrd Mat Min Mat Mat Fac Was Fac Fac Fac DSF Fac Was Fac Upp Upp Zhi Pro Machines Accessed 21 | . . . 2 1 . . 4 3 1 . 2 . 3 1 . 4 . Terminals 13 | . . . 2 . . . 3 3 1 . 2 . 1 1 . . . Fabricators 2 | . . . . . . . 1 . . . . . 1 . . . . Repair Stations . | . . . . . . . . . . . . . . . . . . Recycling Units . | . . . . . . . . . . . . . . . . . . Scanalyzers . | . . . . . . . . . . . . . . . . . . Garrison Access 2 | . . . . 1 . . . . . . . . 1 . . . . Total Hacks 63 | . . . 8 3 . . 10 12 1 . 3 . 8 1 . 17 . Successful 37 | . . . 3 . . . 5 7 1 . 1 . 2 1 . 17 . Failed 26 | . . . 5 3 . . 5 5 . . 2 . 6 . . . . Catastrophic 6 | . . . 1 . . . 2 2 . . . . 1 . . . . Database Lockouts . | . . . . . . . . . . . . . . . . . . Manual . | . . . . . . . . . . . . . . . . . . Terminals 36 | . . . 8 . . . 8 12 1 . 3 . 3 1 . . . Fabricators 3 | . . . . . . . 2 . . . . . 1 . . . . Repair Stations . | . . . . . . . . . . . . . . . . . . Recycling Units . | . . . . . . . . . . . . . . . . . . Scanalyzers . | . . . . . . . . . . . . . . . . . . Garrison Access 7 | . . . . 3 . . . . . . . . 4 . . . . Terminal Hacks 34 | . . . 3 . . . 4 7 1 . 1 . . 1 . 17 . Record 7 | . . . . . . . 1 . . . . . . 1 . 5 . Part Schematic 5 | . . . . . . . 1 . . . . . . . . 4 . Robot Analysis 4 | . . . . . . . . . . . . . . . . 4 . Prototype ID Bank 4 | . . . . . . . . . . . . . . . . 4 . Open DSF 2 | . . . . . . . . . 1 . 1 . . . . . . Level Access Points 2 | . . . . . . . 1 1 . . . . . . . . . Branch Access Points 2 | . . . 1 . . . . 1 . . . . . . . . . Scanalyzer Index 1 | . . . . . . . . 1 . . . . . . . . . Alert Level 1 | . . . 1 . . . . . . . . . . . . . . Unreport Threat 2 | . . . . . . . . 2 . . . . . . . . . Locate Traps 2 | . . . . . . . 1 1 . . . . . . . . . Reprogram Traps 1 | . . . . . . . . 1 . . . . . . . . . Security Status 1 | . . . 1 . . . . . . . . . . . . . . Fabricator Hacks 2 | . . . . . . . 1 . . . . . 1 . . . . Build 2 | . . . . . . . 1 . . . . . 1 . . . . Repair Station Hacks . | . . . . . . . . . . . . . . . . . . Recycling Unit Hacks . | . . . . . . . . . . . . . . . . . . Scanalyzer . | . . . . . . . . . . . . . . . . . . Garrison Access Hacks 1 | . . . . . . . . . . . . . 1 . . . . Seal Access 1 | . . . . . . . . . . . . . 1 . . . . Unauthorized Hacks . | . . . . . . . . . . . . . . . . . . Terminals . | . . . . . . . . . . . . . . . . . . Fabricators . | . . . . . . . . . . . . . . . . . . Repair Stations . | . . . . . . . . . . . . . . . . . . Recycling Units . | . . . . . . . . . . . . . . . . . . Scanalyzers . | . . . . . . . . . . . . . . . . . . Garrison Access . | . . . . . . . . . . . . . . . . . . Data Cores Recovered 1 | . . . . . . . . 1 . . . . . . . . . Used . | . . . . . . . . . . . . . . . . . . Hacking Detections 14 | . . . 2 1 . . 4 3 . . 1 . 2 1 . . . Full Trace Events 3 | . . . 1 1 . . . . . . . . 1 . . . . Feedback Events 1 | . . . . . . . . . . . . . 1 . . . . Corruption 1 | . . . . . . . . . . . . . 1 . . . . Feedback Blocked . | . . . . . . . . . . . . . . . . . . Robot Schematics Acquired . | . . . . . . . . . . . . . . . . . . Robots Built . | . . . . . . . . . . . . . . . . . . Authchips . | . . . . . . . . . . . . . . . . . . Time . | . . . . . . . . . . . . . . . . . . Total Robot Build Rating . | . . . . . . . . . . . . . . . . . . Part Schematics Acquired 5 | . . . . . . . 1 . . . . . . . . 4 . Parts Built 4 | . . . . . . . 2 . . . . . 2 . . . . Authchips . | . . . . . . . . . . . . . . . . . . Time 111 | . . . . . . . 53 . . . . . 58 . . . . Total Part Build Rating 26 | . . . . . . . 12 . . . . . 14 . . . . Parts Repaired . | . . . . . . . . . . . . . . . . . . Time . | . . . . . . . . . . . . . . . . . . Parts Recycled . | . . . . . . . . . . . . . . . . . . Recycled Matter . | . . . . . . . . . . . . . . . . . . Retrieved Matter . | . . . . . . . . . . . . . . . . . . Retrieved Components . | . . . . . . . . . . . . . . . . . . Parts Scanalyzed . | . . . . . . . . . . . . . . . . . . Part Schematics Acquired . | . . . . . . . . . . . . . . . . . . Parts Damaged . | . . . . . . . . . . . . . . . . . . Bothacking | -11 -10 -10 -9 -8 -7 -7 -7 -6 -5 -5 -4 -4 -4 -4 -4 -4 -3 ------------ Run | Yrd Mat Min Mat Mat Fac Was Fac Fac Fac DSF Fac Was Fac Upp Upp Zhi Pro Used RIF Installer . | . . . . . . . . . . . . . . . . . . Robots Hacked . | . . . . . . . . . . . . . . . . . . Non-combat . | . . . . . . . . . . . . . . . . . . Combat . | . . . . . . . . . . . . . . . . . . Robot Hacks Applied . | . . . . . . . . . . . . . . . . . . Relay Couplers Released . | . . . . . . . . . . . . . . . . . . Fabnet Peak Effective % . | . . . . . . . . . . . . . . . . . . Robots Rewired 2 | . . . . . . . . . . . 2 . . . . . . Allies Hacked . | . . . . . . . . . . . . . . . . . . Hacks Repelled . | . . . . . . . . . . . . . . . . . . Allies | -11 -10 -10 -9 -8 -7 -7 -7 -6 -5 -5 -4 -4 -4 -4 -4 -4 -3 -------- Run | Yrd Mat Min Mat Mat Fac Was Fac Fac Fac DSF Fac Was Fac Upp Upp Zhi Pro Total Allies 21 | . . . . . . 19 . . . . 2 . . . . . . Largest Group 19 | . . . . . . 19 8 8 7 7 2 1 . . . . . Highest-Rated Group 465 | . . . . . . 465 242 242 211 211 128 64 . . . . . Highest-Rated Ally 64 | . . . . . . 35 35 35 35 35 64 64 . . . . . Initial Warlord ECA Mod 62 | . . . . . . . . . . . 9 9 9 9 9 9 8 Total Orders . | . . . . . . . . . . . . . . . . . . Ally Attacks 145 | . . . . . . 100 2 15 . 28 . . . . . . . Total Damage 4167 | . . . . . . 3285 43 257 . 582 . . . . . . . Kills 16 | . . . . . . 11 . 3 . 2 . . . . . . . Allies Corrupted . | . . . . . . . . . . . . . . . . . . Allies Melted . | . . . . . . . . . . . . . . . . . . Intel | -11 -10 -10 -9 -8 -7 -7 -7 -6 -5 -5 -4 -4 -4 -4 -4 -4 -3 ------- Run | Yrd Mat Min Mat Mat Fac Was Fac Fac Fac DSF Fac Was Fac Upp Upp Zhi Pro Active Infowar (turns) 3330 | . . . 74 74 384 375 198 273 19 341 228 197 156 649 109 101 152 Optics 2163 | . . . . . . . 179 273 19 341 228 197 156 408 109 101 152 Sensors 40 | . . . . 40 . . . . . . . . . . . . . T.N.C. 2597 | . . . 74 74 384 375 198 273 19 341 228 197 156 278 . . . Machine Analysis 1683 | . . . . . . . . 81 19 341 228 197 156 649 12 . . Cloaking 90 | . . . . . . . . . . . . 90 . . . . . Robot Analysis Total 4 | . . . . . . . . . . . . . . . . 4 . Derelict Logs Recovered 2 | . . . . . . . . . . . . . . 1 1 . . Drone Launches . | . . . . . . . . . . . . . . . . . . Drone Recoveries . | . . . . . . . . . . . . . . . . . . Exploration | -11 -10 -10 -9 -8 -7 -7 -7 -6 -5 -5 -4 -4 -4 -4 -4 -4 -3 ------------- Run | Yrd Mat Min Mat Mat Fac Was Fac Fac Fac DSF Fac Was Fac Upp Upp Zhi Pro Turns Passed 3625 | 14 45 170 140 74 384 375 198 273 19 341 228 197 156 649 109 101 152 Spaces Moved 3624 | 27 82 253 183 126 284 263 243 295 17 217 139 162 80 533 194 135 391 Core 757 | 27 82 88 70 . 149 27 . . . . . . . 36 194 84 . Treads . | . . . . . . . . . . . . . . . . . . Legs 76 | . . . . . 76 . . . . . . . . . . . . Wheels . | . . . . . . . . . . . . . . . . . . Hover 908 | . . . . . . 236 243 295 17 117 . . . . . . . Flight 1883 | . . 165 113 126 59 . . . . 100 139 162 80 497 . 51 391 Fastest Speed 32 | 50 50 37 37 34 34 50 53 53 53 34 114 114 108 37 50 32 32 Average Speed 64 | 50 50 41 49 34 105 58 54 53 53 83 114 114 112 74 51 43 32 Slowest Speed 280 | 50 50 50 120 37 200 120 58 53 53 280 114 114 114 200 100 50 32 Overloaded Moves . | . . . . . . . . . . . . . . . . . . Propulsion Burnouts . | . . . . . . . . . . . . . . . . . . Robots Hopped 1 | . . 1 . . . . . . . . . . . . . . . Potential Cave-ins 6 | . . . . . . . . . . . 6 . . . . . . Cave-ins Triggered . | . . . . . . . . . . . . . . . . . . Teleports 1 | . . . . . . . . . . . . . . . . 1 . Exploration Rate (%) 37 | 4 28 54 19 21 10 88 8 15 1 97 6 83 3 77 49 63 57 Regions Visited 17 Branch Regions 5 Pre-discovered Areas 5 | . . . . . . . . . . . . . . 2 . 3 . Known Exits Taken 3 | . . . . . . . 1 1 1 . . . . . . . . Unknown Exits Taken 9 | 1 1 1 1 1 . . . . . . . . 1 1 1 1 . Scrap Searched 5 | . . . . . . . . . . . . . . 3 2 . . Spaces Dug 1 | . . . . . . . . . . . 1 . . . . . . Terrain Destroyed 13 | . . . . . . . . . . . 9 . 1 3 . . . Melee . | . . . . . . . . . . . . . . . . . . Projectile 13 | . . . . . . . . . . . 9 . 1 3 . . . AOE . | . . . . . . . . . . . . . . . . . . Terrain Rammed . | . . . . . . . . . . . . . . . . . . Walls Destroyed . | . . . . . . . . . . . . . . . . . . Machines Disabled . | . . . . . . . . . . . . . . . . . . Actions | -11 -10 -10 -9 -8 -7 -7 -7 -6 -5 -5 -4 -4 -4 -4 -4 -4 -3 --------- Run | Yrd Mat Min Mat Mat Fac Was Fac Fac Fac DSF Fac Was Fac Upp Upp Zhi Pro Total 4631 | 26 83 295 212 138 342 468 306 378 26 305 191 171 141 759 199 173 418 Wait 792 | . . 20 8 3 16 196 61 67 10 50 30 4 58 209 1 32 27 Move 3607 | 26 81 250 182 125 284 262 242 294 16 216 139 161 79 532 193 134 391 Hop 1 | . . 1 . . . . . . . . . . . . . . . Pick Up . | . . . . . . . . . . . . . . . . . . Fast Attach 57 | . 1 7 7 2 4 4 3 2 . 7 . 6 2 3 2 7 . Attach . | . . . . . . . . . . . . . . . . . . Detach . | . . . . . . . . . . . . . . . . . . Swap . | . . . . . . . . . . . . . . . . . . Drop . | . . . . . . . . . . . . . . . . . . Fire 146 | . 1 16 15 8 25 6 . 14 . 32 9 . 2 15 3 . . Melee . | . . . . . . . . . . . . . . . . . . Ram 4 | . . 1 . . 2 . . 1 . . . . . . . . . Kick . | . . . . . . . . . . . . . . . . . . Crush . | . . . . . . . . . . . . . . . . . . Escape Stasis 11 | . . . . . 11 . . . . . . . . . . . . Rewire 13 | . . . . . . . . . . . 13 . . . . . . Trap . | . . . . . . . . . . . . . . . . . . Miscellaneous . | . . . . . . . . . . . . . . . . . . Route ------- -11/Scrapyard -10/Materials -10/Mines -9/Materials (discovered 4 exits: *Mat / Min x2 / Sto) -8/Materials -7/Factory -7/Waste -7/Factory (discovered 4 exits: *Fac x4) -6/Factory (discovered 8 exits: *Fac x4 / Low x2 / Ext x2) -5/Factory -5/DSF -4/Factory -4/Waste -4/Factory -4/Upper Caves -4/Upper Caves -4/Zhirov -3/Proximity Caves History --------- Turn | Location | Event 5 | -11/Scrapyard | Discovered new exit (range 15) 15 | -11/Scrapyard | Entered Materials 49 | -10/Materials | Discovered new exit (range 16) 60 | -10/Materials | Entered Mines 178 | -10/Mines | Found a damaged Exp. Sensor Array with a note attached 179 | -10/Mines | Assembled infested the area 184 | -10/Mines | Assisted by a Guerilla fighting off Assembled 211 | -10/Mines | Core integrity fell below 50% 215 | -10/Mines | Core integrity fell below 20% 220 | -10/Mines | Received a Rocket Launcher from a helpful Derelict 226 | -10/Mines | Discovered new exit (range 8) 230 | -10/Mines | Entered Materials 230 | -9/Materials | Evolved 2 slots: Propulsion x1, Utility x1 245 | -9/Materials | Lost 6 parts (1p2n1u2w) 364 | -9/Materials | Identified exit to Mines 364 | -9/Materials | Identified exit to Storage 364 | -9/Materials | Discovered new exit (range 15) 370 | -9/Materials | Entered another Materials area 370 | -8/Materials | Evolved 2 slots: Propulsion x1, Utility x1 389 | -8/Materials | Garrison activated, responded to threat 439 | -8/Materials | Discovered new exit (range 16) 444 | -8/Materials | Entered Factory 444 | -7/Factory | Evolved 2 slots: Power x1, Utility x1 510 | -7/Factory | Lost 3 parts (1n1u1w) 698 | -7/Factory | Lost 4 parts (3n1w) 828 | -7/Factory | Sucked down chute 828 | -7/Factory | Entered Waste 839 | -7/Waste | Spotted C-40 Crusher 856 | -7/Waste | Spotted C-40 Crusher 859 | -7/Waste | Spotted C-40 Crusher 875 | -7/Waste | Warlord forces began an assault 968 | -7/Waste | Build established: Mutant 1007 | -7/Waste | Spotted C-40 Crusher 1021 | -7/Waste | Allies destroyed C-40 Crusher 1031 | -7/Waste | Allies destroyed C-40 Crusher 1048 | -7/Waste | Spotted C-40 Crusher 1059 | -7/Waste | Lost 6 allies 1064 | -7/Waste | Allies destroyed C-40 Crusher 1073 | -7/Waste | Allies destroyed C-40 Crusher 1082 | -7/Waste | Allies destroyed C-40 Crusher 1130 | -7/Waste | Discovered new exit (range 11) 1159 | -7/Waste | Lost 3 allies 1203 | -7/Waste | Entered Factory 1203 | -7/Factory | Accompanied by 8 allies 1261 | -7/Factory | Identified exit to Factory 1334 | -7/Factory | Fabricated Imp. Shock Absorption System? 1401 | -7/Factory | Entered another Factory area 1401 | -6/Factory | Accompanied by 8 allies 1401 | -6/Factory | Evolved 2 slots: Utility x1, Weapon x1 1482 | -6/Factory | Noticed a derelict Sapper rigging charges 1570 | -6/Factory | Identified exit to Lower Caves 1570 | -6/Factory | Identified exit to Extension 1603 | -6/Factory | Identified exit to Factory 1674 | -6/Factory | Entered another Factory area 1674 | -5/Factory | Accompanied by 7 allies 1674 | -5/Factory | Evolved 2 slots: Propulsion x1, Utility x1 1683 | -5/Factory | Identified exit to DSF 1693 | -5/Factory | Entered DSF 1693 | -5/DSF | Accompanied by 7 allies 1723 | -5/DSF | Additional patrols routed to DSF 1755 | -5/DSF | Discovered new exit (range 15) 1758 | -5/DSF | Lost 3 allies 1817 | -5/DSF | Lost 3 allies 1838 | -5/DSF | Lost 3 parts (1p1n1w) 1937 | -5/DSF | Sterilization system engaged 1957 | -5/DSF | Ambient heat levels rising (+10) 1972 | -5/DSF | Ambient heat levels rising (+10) 1987 | -5/DSF | Ambient heat levels rising (+10) 2002 | -5/DSF | Ambient heat levels rising (+10) 2017 | -5/DSF | Ambient heat levels rising (+10) 2032 | -5/DSF | Ambient heat levels rising (+10) 2034 | -5/DSF | Entered Factory 2034 | -4/Factory | Evolved 2 slots: Propulsion x1, Utility x1 2262 | -4/Factory | Sucked down chute 2262 | -4/Factory | Entered Waste 2267 | -4/Waste | Spotted C-40 Crusher 2310 | -4/Waste | Spotted C-40 Crusher 2311 | -4/Waste | Build established: Scavenger-Skirmisher 2332 | -4/Waste | 2 allies followed down the chute 2332 | -4/Waste | Spotted C-40 Crusher 2339 | -4/Waste | Spotted C-40 Crusher 2340 | -4/Waste | Spotted C-40 Crusher 2345 | -4/Waste | Crushed by Compactor (1 part destroyed, 2 dropped) 2346 | -4/Waste | Crushed by Compactor (1 part destroyed, 1 dropped) 2393 | -4/Waste | Spotted C-40 Crusher 2414 | -4/Waste | Crushed by Compactor (1 part destroyed, 2 dropped) 2444 | -4/Waste | Discovered new exit (range 12) 2459 | -4/Waste | Entered Factory 2583 | -4/Factory | Fabricated Impulse Thruster (x2) 2590 | -4/Factory | Discovered new exit (range 10) 2615 | -4/Factory | Entered Upper Caves 2616 | -4/Upper Caves | Encountered a Warlord checkpoint 2621 | -4/Upper Caves | Met a Warlord Commander 2623 | -4/Upper Caves | Warlord Commander delivered Encrypted Comm Array 2632 | -4/Upper Caves | Found Encrypted Comm Array 2672 | -4/Upper Caves | Build established: Scavenger-Mutant 2943 | -4/Upper Caves | Lost 8 parts (2p3n1u2w) 3177 | -4/Upper Caves | Build established: Hacker-Mutant 3248 | -4/Upper Caves | Attracted the attention of an 0b10 checkpoint 3259 | -4/Upper Caves | Discovered new exit (range 6) 3263 | -4/Upper Caves | Learned location of Testing (-2) 3264 | -4/Upper Caves | Entered another Upper Caves area 3277 | -4/Upper Caves | Core integrity fell below 50% 3283 | -4/Upper Caves | Encountered a Warlord checkpoint 3283 | -4/Upper Caves | Learned location of 1 exit from Research 3335 | -4/Upper Caves | Core integrity fell below 20% 3367 | -4/Upper Caves | Lost 10 parts (1p1n6u2w) 3369 | -4/Upper Caves | Discovered new exit (range 9) 3373 | -4/Upper Caves | Entered Zhirov 3373 | -4/Zhirov | Discovered new exit (range 3) 3383 | -4/Zhirov | Met Zhirov 3394 | -4/Zhirov | Learned location of Quarantine (-3) 3394 | -4/Zhirov | Learned location of Command (-1) 3404 | -4/Zhirov | Zhirov requested help retrieving the SGEMP Prototype 3451 | -4/Zhirov | Found Alien Artifact 3451 | -4/Zhirov | Identified Integrated Dissipator 3451 | -4/Zhirov | Installed Integrated Dissipator, increased core heat dissipation (+20) 3456 | -4/Zhirov | Found Alien Artifact 3456 | -4/Zhirov | Identified Transdimensional Reconstructor 3456 | -4/Zhirov | Warped through subspace 3474 | -4/Zhirov | Entered Proximity Caves 3484 | -3/Proximity Caves | Spotted B-86 Titan 3626 | -3/Proximity Caves | Destroyed by P-80 Master with Gamma Rifle Last Messages --------------- 03417_ Acquired Cld. Nuclear Pulse Thruster. 03422_ Acquired Adv. System Shield. 03424_ Acquired Adv. Power Amplifier. 03451_ Acquired Alien Artifact. 03451_ Identified Integrated Dissipator. 03451_ Integrated Dissipator installed, core heat dissipation increased (+20). 03456_ Acquired Alien Artifact. 03456_ Identified Transdimensional Reconstructor. 03456_ Warped through subspace. LOCATION=UNKNOWN GOAL=ESCAPE 03485_ Knocked back. 03490_ Slug penetrates Wall. 03535_ PC-WSN(k) breaks down the debris. 03569_ System corrupted: Heat flow error (+228). 03586_ Acquired 28 matter. 03588_ Acquired 3 matter. Map ----- +----------------------------------------------------+ | | | | | | | | | | | | | | | | | ?????????????????????????????????????????????????? | | ?????????????????????????????????????????????????? | | ?????????????????????????????????????????????????? | | ?????????????????????????????????????????????????? | | ?????????????????????????????????????????????????? | | ?????????????????????????????????????????????????? | | ?????????????????????????????????????????????????? | | ?????????????????????????????????????????????????? | | ?????????????????????????????????????????????????? | | ?????????????????????????????????????????????????? | | ?????????????????????????????????????????????????? | | ?????????????????????????????????????????????????? | | ?????????????????????????????????????????????????? | | ?????????????????????????????????????????????????? | | ?????????????????????????###??????#######????????? | | ??????????????????????#### ##????## ####?????? | | ?????????????????????## ###### % ##????? | | ?????????????????????# #@## #????? | | ?????????????????????# ########### #????? | | ?????????????????????## ###???##??## ######? | | ??????????????????????## #???# ?### %#?# #? | | ???????????????????????## # ####"## #?# #? | | ????????????????????????# ##?## % #?# ## | | ????????????????????????# #?## ! #### #### | | ?????????#####???######## #?# ##??##### | | ????????## ##??# ## ### ##???### | | ??????### #### pp #??## | | ??????# #### | | ??????# ####### ## | | ??????# # ### ##????# | | ?????## ## #?# #????# ## | | ?##### ### #???# ## | | ## #### #?##### #???### | | # ??# ######## ##????###% | | ???# #?# ########""! | | ##### #?######## | | ##??????## # # | | ###???????# # ## | | ###### ###?????????# # ####? | | #????# #????????????? ## ##???? | | ##????# #??????#####?# ?# ##????? | | ####??#### #?####?# ### ??# ##????? | +----------------------------------------------------+ Best States ------------- Heat Dissipation 63 Energy Generation 31 Energy Capacity 440 Matter Stores 600 Matter Capacity 600 Sight Range 20 Robot Scan Range 15 Terrain Scan Density 10 Cloak Strength 4 Power Amplification 30 Additional Mass Support 6 Resistance: KI 50 Resistance: TH 20 Resistance: EX 20 Resistance: EM 20 Resistance: I 20 Resistance: S 20 Resistance: P 20 Evasion (%) 63 Offensive Hacking 10 Defensive Hacking 14 Item Schematics ----------------- Gravmag Array | -7/Factory | Hacked Assault Drone Bay | -4/Zhirov | Free Exp. Heat Sink | -4/Zhirov | Free Exp. Optical Array | -4/Zhirov | Free Imp. Arc Thrower | -4/Zhirov | Free Robot Schematics ------------------ None Fabricated ------------ Imp. Shock Absorption System | x2 | -7/Factory | Preloaded Impulse Thruster | x2 | -4/Factory | Preloaded Repaired ---------- Nothing Alien Tech Used ----------------- Integrated Dissipator Transdimensional Reconstructor Achievements -------------- Below Challenges ------------ Pure Core Scavenger Simple Hacker Sticky Parts Game ------ Seed HeartTacticalExpander Manual? 0 Play Time 00:38:41 Cumulative 482.1 hours Start 2025.06.10 @ 00:54:35 End 2025.06.10 @ 01:31:45 Sessions 1 Manual Loads 0 Difficulty Adventurer Special Mode None Game No. 210 Rogue 104 Adventurer 106 Explorer 0 Win Type - Total 30 Types 15/5/0/5/1/1/0/0/1/2 Lore% 85 Gallery% 90 Achievement% 85 Wizard Run 0 Options --------- Layout 2 ASCII 0 Keyboard 0 Movement Mouse Keybinds 0 Fullscreen 2 Font 24/Smallcaps Map View 50x44 Zoom Use 0% Tactical HUD 1 Map Filters NONE Filters NONE Steam 1 RUN: 8006416c-8a07-404f-830a-2fe3cf62dfed